bitfinex/quotes_SOLUSD_20240727
["timestamp","ask_amount","ask_price","bid_price","bid_amount"]
[1722081647189,5.3762,186.01,185.94,12.6]
[1722081647576,29.5487,186.1,185.98,12.6]
[1722081647886,16.1146,186.1,186.01,12.6]
[1722081648083,12.6,186.09,186.01,12.6]
[1722081648283,17.974,186.09,186.01,12.6]
[1722081648496,17.974,186.09,186.02,1.07507119]
[1722081648497,5.374,186.08,186.02,1.07507119]
[1722081648677,5.3746,186.06,186.0,12.6]
[1722081648880,5.3746,186.06,185.97,0.17]
[1722081648881,6.16392,186.04,185.99,12.6]
[1722081649086,0.78872,186.04,185.98,12.6]
[1722081649286,0.78872,186.04,185.99,12.6]
[1722081649676,6.16392,186.04,185.99,12.6]
[1722081649877,6.16392,186.04,185.97,12.6]
[1722081650378,5.3755,186.03,185.97,12.6]
[1722081651179,5.376,186.01,185.95,18.9741]
[1722081651701,0.78872,186.04,185.99,12.6]
[1722081651883,0.78872,186.04,186.0,12.6]
[1722081655284,0.78872,186.04,186.01,13.67518121]
[1722081655505,0.78872,186.04,186.02,12.6]
[1722081658505,0.78872,186.04,185.96,1.07507213]
[1722081658506,0.78872,186.04,186.01,12.6]
[1722081659111,0.78872,186.04,186.0,12.6]
[1722081659291,0.78872,186.04,186.01,13.67502138]
[1722081659489,0.78872,186.04,186.02,1.07501114]
[1722081659908,0.78872,186.04,186.02,12.6]
[1722081660209,0.78872,186.04,186.03,12.6]
[1722081661879,0.78872,186.04,186.02,12.6]
[1722081662412,0.78872,186.04,186.03,12.6]
[1722081663786,0.78872,186.04,185.97,15.2003]
[1722081664110,0.78872,186.04,186.02,12.6]
[1722081664318,0.78872,186.04,185.99,1.07501613]
[1722081664618,0.78872,186.04,186.02,12.6]
[1722081680324,0.78872,186.04,186.03,1.07491706]
[1722081680525,0.78872,186.04,186.02,12.6]
[1722081682326,0.78872,186.04,186.03,1.07491386]
[1722081682712,0.78872,186.04,186.02,12.6]
[1722081683326,0.78872,186.04,186.03,92.755]
[1722081683628,5.3723,186.14,186.09,12.6]
[1722081683938,5.372,186.15,186.09,12.6]
[1722081684223,5.3717,186.16,186.07,12.6]
[1722081684523,5.3723,186.14,186.08,12.6]
[1722081685026,5.3723,186.14,186.09,1.07466657]
[1722081685417,22.34698758,186.18,186.1,12.6]
[1722081685624,22.34698758,186.18,186.12,12.6]
[1722081685809,5.3714,186.17,186.12,12.6]
[1722081686009,5.3714,186.17,186.11,12.6]
[1722081686216,16.97568758,186.18,186.12,12.6]
[1722081686536,5.3714,186.17,186.12,12.6]
[1722081686736,16.97568758,186.18,186.12,12.6]
[1722081687328,1.25158758,186.18,186.13,12.6]
[1722081687532,6.62288758,186.18,186.13,12.6]
[1722081687713,5.3713,186.18,186.13,12.6]
[1722081687910,0.78872,186.22,186.14,12.6]
[1722081688134,5.3705,186.2,186.14,12.6]
[1722081688638,5.3711,186.18,186.14,12.6]
[1722081688816,12.6,186.21,186.13,12.6]
[1722081689219,5.3712,186.18,186.13,12.6]
[1722081689432,12.6,186.2,186.1,15.6228]
[1722081689732,12.6,186.19,186.11,12.6]
[1722081690350,5.372,186.16,186.11,12.6]
[1722081690708,5.372,186.15,186.11,12.6]
[1722081690914,12.6,186.17,186.05,22.0103]
[1722081691348,5.3722,186.15,186.1,12.6]
[1722081691812,5.3723,186.14,186.1,12.6]
[1722081693030,5.3719,186.16,186.1,12.6]
[1722081693214,5.372,186.15,186.1,12.6]
[1722081693418,12.6,186.18,186.1,12.6]
[1722081693419,5.3723,186.14,186.1,12.6]
[1722081694928,5.3718,186.16,186.1,12.6]
[1722081695845,12.6,186.18,186.11,12.6]
[1722081696145,12.6,186.18,186.06,1.0745816]
[1722081696146,5.3719,186.16,186.12,12.6]
[1722081696637,5.372,186.15,186.11,12.6]
[1722081696843,5.372,186.15,186.05,22.0103]
[1722081696844,5.372,186.15,186.1,12.6]
[1722081698431,13.4276,186.19,186.1,12.6]
[1722081698638,5.3718,186.16,186.1,12.6]
[1722081699134,5.3718,186.16,186.11,12.6]
[1722081699849,5.3718,186.16,186.05,23.08486913]
[1722081699850,0.78872,186.22,186.15,12.6]
[1722081700055,0.78872,186.22,186.16,12.6]
[1722081700227,5.3707,186.2,186.14,12.6]
[1722081700421,5.3709,186.19,186.14,12.6]
[1722081700622,5.3706,186.2,186.14,12.6]
[1722081702142,5.3703,186.21,186.14,12.6]
[1722081702348,0.78872,186.22,186.16,12.6]
[1722081702560,0.78872,186.22,186.15,12.6]
[1722081702934,0.78872,186.22,186.16,45.0]
[1722081703328,0.78872,186.22,186.17,12.6]
[1722081703725,0.78872,186.22,186.2,12.6]
[1722081703951,0.78872,186.22,186.21,6.3875]
[1722081704163,0.78872,186.22,186.21,18.9875]
[1722081705031,0.78872,186.22,186.19,12.6]
[1722081707225,0.78872,186.22,186.2,12.6]
[1722081707543,0.78872,186.22,186.19,12.6]
[1722081708140,0.78872,186.22,186.18,12.6]
[1722081708528,0.78872,186.22,186.19,12.6]
[1722081708736,0.78872,186.22,186.2,12.6]
[1722081708939,0.78872,186.22,186.2,57.6]
[1722081709142,0.78872,186.22,186.21,12.6]
[1722081709654,0.78872,186.22,186.16,51.3875]
[1722081709856,0.78872,186.22,186.2,12.6]
[1722081710638,0.78872,186.22,186.21,12.6]
[1722081710845,0.78872,186.22,186.21,57.6]
[1722081711261,0.78872,186.22,186.17,20.17]
[1722081711560,0.78872,186.22,186.21,12.6]
[1722081711863,0.78872,186.22,186.21,57.6]
[1722081712963,0.78872,186.22,186.21,12.6]
[1722081713364,0.78872,186.22,186.21,57.6]
[1722081714142,0.78872,186.22,186.18,0.17]
[1722081714456,0.78872,186.22,186.21,12.6]
[1722081715657,0.78872,186.22,186.18,46.07386425]
[1722081715863,0.78872,186.22,186.21,12.6]
[1722081716360,0.78872,186.22,186.2,12.6]
[1722081717265,0.78872,186.22,186.19,12.6]
[1722081717751,0.78872,186.22,186.2,12.6]
[1722081725454,0.78872,186.22,186.21,12.6]
[1722081725658,0.78872,186.22,186.2,12.6]
[1722081725883,0.78872,186.22,186.21,13.67399905]
[1722081726066,0.78872,186.22,186.21,12.6]
[1722081727157,0.78872,186.22,186.16,7.46124446]
[1722081727496,0.78872,186.22,186.2,12.6]
[1722081727682,0.78872,186.22,186.21,1.07394052]
[1722081728056,0.78872,186.22,186.17,65.0]
[1722081728258,0.78872,186.22,186.19,12.6]
[1722081728880,0.78872,186.22,186.21,12.6]
[1722081729653,0.78872,186.22,186.21,57.6]
[1722081730985,0.78872,186.22,186.21,12.6]
[1722081731278,0.78872,186.22,186.17,20.0]
[1722081731587,0.78872,186.22,186.21,12.6]
[1722081731759,0.78872,186.22,186.16,7.4612893]
[1722081731960,0.78872,186.22,186.19,12.6]
[1722081734861,0.78872,186.22,186.16,6.3875]
[1722081735063,0.78872,186.22,186.21,12.6]
[1722081735463,0.78872,186.22,186.21,57.6]
[1722081737581,0.78872,186.22,186.17,1.07377476]
[1722081737780,0.78872,186.22,186.21,12.6]
[1722081738157,0.78872,186.22,186.18,1.24384125]
[1722081738361,0.78872,186.22,186.21,12.6]
[1722081738663,0.78872,186.22,186.21,58.673704]
[1722081739161,0.78872,186.22,186.21,71.273704]
[1722081739369,0.78872,186.22,186.21,91.613704]
[1722081740889,0.78872,186.22,186.21,77.77]
[1722081741088,0.78872,186.22,186.21,65.0]
[1722081741473,0.78872,186.22,186.16,9.5946711]
[1722081741676,0.78872,186.22,186.21,12.6]
[1722081742492,0.78872,186.22,186.16,6.3875]
[1722081742674,0.78872,186.22,186.18,12.6]
[1722081742988,0.78872,186.22,186.2,12.6]
[1722081743985,0.78872,186.22,186.19,12.6]
[1722081745095,0.78872,186.22,186.16,6.3875]
[1722081745391,0.78872,186.22,186.13,1.07396617]
[1722081745573,13.38872,186.22,186.15,12.6]
[1722081745893,12.6,186.2,186.13,12.6]
[1722081746102,12.6,186.19,186.12,12.6]
[1722081746466,12.6,186.18,186.11,12.6]
[1722081746695,12.6,186.18,186.06,1.07426357]
[1722081746696,12.6,186.15,186.04,15.2932]
[1722081746890,16.4165,186.16,186.07,12.6]
[1722081747197,16.4165,186.16,186.08,12.6]
[1722081747198,12.6,186.15,186.08,12.6]
[1722081747385,16.4165,186.16,186.04,15.2932]
[1722081747590,16.4165,186.25,186.15,12.6]
[1722081747791,5.3698,186.23,186.18,12.6]
[1722081747998,5.3698,186.23,186.17,12.6]
[1722081748204,17.9698,186.23,186.16,12.6]
[1722081748378,12.6,186.23,186.11,1.07412687]
[1722081748578,16.4165,186.25,186.1,6.5491]
[1722081748579,12.6,186.2,186.1,6.5491]
[1722081748892,12.6,186.19,186.12,12.6]
[1722081749091,5.3705,186.21,186.11,20.0]
[1722081749484,5.3705,186.21,186.07,21.07433752]
[1722081749679,5.3712,186.18,186.07,21.07433752]
[1722081750004,5.3714,186.17,186.06,31.5291]
[1722081750195,5.3718,186.16,186.06,6.5491]
[1722081750384,5.3718,186.16,186.04,15.2932]
[1722081751503,21.7879,186.17,186.05,45.0]
[1722081751701,0.78872,186.22,186.1,24.98]
[1722081751886,0.78872,186.22,186.11,46.41416231]
[1722081752584,0.78872,186.22,186.12,20.0]
[1722081752904,0.78872,186.22,186.13,46.07416245]
[1722081753099,0.78872,186.22,186.14,20.0]
[1722081754410,0.78872,186.22,186.15,1.07416242]
[1722081755415,0.78872,186.22,186.14,20.0]
[1722081755789,0.78872,186.22,186.15,1.07416187]
[1722081756200,0.78872,186.22,186.14,20.0]
[1722081756804,5.58644697,186.29,186.2,24.98]
[1722081757104,13.4148,186.37,186.21,20.34]
[1722081757279,1.25158758,186.36,186.22,45.0]
[1722081757483,5.3668,186.33,186.22,45.0]
[1722081757706,5.3671,186.32,186.21,20.0]
[1722081758096,5.3668,186.33,186.18,21.07376178]
[1722081758405,5.3668,186.33,186.19,45.34]
[1722081758792,5.3668,186.33,186.2,20.0]
[1722081758986,21.6102,186.35,186.21,1.07375605]
[1722081759190,21.6102,186.35,186.21,46.07375605]
[1722081760098,5.58537134,186.38,186.3,24.98]
[1722081760303,0.78872,186.4,186.31,46.24307491]
[1722081761393,0.78872,186.4,186.32,20.0]
[1722081761704,0.78872,186.4,186.33,45.0]
[1722081762018,0.78872,186.4,186.32,20.0]
[1722081762226,0.78872,186.4,186.33,46.07299543]
[1722081763000,0.78872,186.4,186.33,45.0]
[1722081764314,0.78872,186.4,186.31,0.17]
[1722081764507,0.78872,186.4,186.31,65.34]
[1722081765222,0.78872,186.4,186.32,1.07306165]
[1722081765523,0.78872,186.4,186.31,66.41296857]
[1722081767708,0.78872,186.4,186.31,65.34]
[1722081768314,0.78872,186.4,186.31,65.17]
[1722081770016,0.78872,186.4,186.31,65.0]
[1722081770809,15.3001,186.39,186.25,21.6306]
[1722081771118,15.3001,186.39,186.25,46.6106]
[1722081771119,5.3661,186.36,186.25,46.6106]
[1722081771320,5.3661,186.36,186.25,21.6306]
[1722081771705,5.3661,186.36,186.25,22.70408117]
[1722081772405,5.3657,186.37,186.25,21.6306]
[1722081773001,15.3001,186.39,186.25,22.70402766]
[1722081773524,15.3001,186.39,186.26,45.0]
[1722081773723,15.3001,186.39,186.27,21.07326967]
[1722081774023,15.3001,186.39,186.28,45.0]
[1722081774205,20.6652,186.39,186.29,1.07325737]
[1722081774409,20.6652,186.39,186.28,46.07325846]
[1722081775310,15.3001,186.39,186.28,46.07325846]
[1722081776827,20.6652,186.39,186.28,45.0]
[1722081777825,12.0055,186.38,186.27,20.0]
[1722081778020,12.0055,186.38,186.24,24.98]
[1722081778228,12.0055,186.38,186.25,21.07338829]
[1722081778229,6.6399,186.38,186.25,21.07338829]
[1722081779834,6.6399,186.38,186.26,45.0]
[1722081780132,6.6399,186.38,186.27,46.0533741]
[1722081781126,6.6399,186.38,186.27,44.98]
[1722081781340,5.3663,186.35,186.26,69.98]
[1722081781508,6.6399,186.38,186.26,69.98]
[1722081782729,6.6399,186.38,186.24,0.17]
[1722081782928,6.6399,186.38,186.23,20.0]
[1722081783525,6.6399,186.38,186.21,24.98]
[1722081783526,5.3667,186.34,186.22,20.0]
[1722081783824,6.6399,186.38,186.19,16.2545]
[1722081783825,15.3001,186.36,186.19,16.2545]
[1722081784026,5.3674,186.31,186.2,24.98]
[1722081784439,5.3671,186.32,186.2,24.98]
[1722081784643,15.3001,186.36,186.2,24.98]
[1722081784839,45.0,186.35,186.2,24.98]
[1722081785041,5.3677,186.3,186.2,24.98]
[1722081785214,5.3674,186.31,186.2,24.98]
[1722081785921,5.3677,186.3,186.2,24.98]
[1722081786758,5.3677,186.3,186.17,24.98]
[1722081787125,5.3679,186.29,186.17,24.98]
[1722081787321,5.3679,186.29,186.18,20.0]
[1722081787845,5.3677,186.3,186.18,20.0]
[1722081788226,5.3673,186.32,186.18,20.0]
[1722081788429,5.3674,186.31,186.18,20.0]
[1722081789631,58.4161,186.35,186.18,20.0]
[1722081789851,5.3675,186.31,186.18,20.0]
[1722081792256,5.3677,186.3,186.18,20.0]
[1722081792623,5.368,186.29,186.18,20.0]
[1722081793023,5.3676,186.3,186.18,20.0]
[1722081794739,5.59053476,186.34,186.18,20.0]
[1722081795052,5.3674,186.31,186.18,20.0]
[1722081795844,5.3676,186.3,186.18,20.0]
[1722081796061,5.3674,186.31,186.19,45.0]
[1722081796556,15.3001,186.36,186.2,26.05382341]
[1722081796859,15.3001,186.36,186.24,6.5123]
[1722081797149,15.3001,186.36,186.25,45.0]
[1722081797849,20.6661,186.36,186.25,45.0]
[1722081798425,5.3671,186.32,186.24,6.5123]
[1722081798854,5.3668,186.33,186.24,6.5123]
[1722081799223,1.25158758,186.35,186.24,7.58601946]
[1722081799427,1.25158758,186.35,186.24,6.5123]
[1722081799649,5.3668,186.33,186.24,6.5123]
[1722081799852,5.3668,186.33,186.25,1.07371846]
[1722081800163,5.3665,186.34,186.24,6.5123]
[1722081800449,6.61808758,186.34,186.24,6.5123]
[1722081801063,5.3669,186.33,186.24,6.5123]
[1722081801425,5.3669,186.33,186.25,1.0737179]
[1722081801761,6.61808758,186.34,186.25,1.0737179]
[1722081801947,6.61808758,186.34,186.24,6.5123]
[1722081802131,1.25158758,186.34,186.24,6.5123]
[1722081802330,6.61808758,186.34,186.24,6.5123]
[1722081803053,1.25158758,186.34,186.24,6.5123]
[1722081805726,6.61808758,186.34,186.24,6.5123]
[1722081806231,1.25158758,186.34,186.24,6.5123]
[1722081806635,6.61818758,186.34,186.24,6.5123]
[1722081808664,1.25158758,186.34,186.24,6.5123]
[1722081808959,6.61808758,186.34,186.24,6.5123]
[1722081809529,6.61818758,186.34,186.24,6.5123]
[1722081809748,1.25158758,186.34,186.24,6.5123]
[1722081810148,0.78872,186.4,186.24,7.58587929]
[1722081810345,1.25158758,186.39,186.25,45.0]
[1722081810659,1.25158758,186.39,186.26,1.07346127]
[1722081810837,1.25158758,186.39,186.27,1.07336061]
[1722081811045,19.08668758,186.39,186.32,12.47]
[1722081812263,1.25158758,186.39,186.31,12.47]
[1722081812436,1.25158758,186.39,186.3,27.7606]
[1722081812437,12.47,186.38,186.3,27.7606]
[1722081813134,1.25158758,186.39,186.3,15.2906]
[1722081813564,1.25158758,186.39,186.31,6.2414]
[1722081814349,1.25158758,186.39,186.32,1.07324869]
[1722081814666,1.25158758,186.39,186.33,1.07316746]
[1722081814852,0.78872,186.4,186.33,1.07316746]
[1722081815454,0.78872,186.4,186.32,45.0]
[1722081815656,0.78872,186.4,186.33,1.07308534]
[1722081816048,0.78872,186.4,186.32,45.0]
[1722081817371,0.78872,186.4,186.33,0.17]
[1722081818884,0.78872,186.4,186.37,24.93]
[1722081819049,0.78872,186.4,186.38,46.07276126]
[1722081819250,0.78872,186.4,186.35,26.00276331]
[1722081819468,0.78872,186.4,186.36,45.0]
[1722081819766,0.78872,186.4,186.34,21.532]
[1722081819950,0.78872,186.4,186.35,20.0]
[1722081821340,0.78872,186.4,186.36,46.07293388]
[1722081821542,0.78872,186.4,186.36,71.00293388]
[1722081823046,0.78872,186.4,186.37,20.34]
[1722081823245,0.78872,186.4,186.39,46.462]
[1722081823447,0.78872,186.4,186.39,46.802]
[1722081823745,0.78872,186.4,186.39,21.532]
[1722081824370,0.78872,186.4,186.39,86.532]
[1722081824759,0.78872,186.4,186.39,86.702]
[1722081824961,0.78872,186.4,186.39,86.532]
[1722081825495,0.78872,186.4,186.39,41.532]
[1722081826476,0.78872,186.4,186.39,6.2414]
[1722081827671,0.78872,186.4,186.35,15.9559]
[1722081828877,0.78872,186.4,186.31,40.8859]
[1722081829051,0.78872,186.4,186.31,15.9559]
[1722081829266,6.15352,186.4,186.31,15.9559]
[1722081829470,1.24426975,186.39,186.29,6.6163]
[1722081829764,5.3667,186.34,186.23,47.5022]
[1722081829978,16.6034,186.38,186.23,47.5022]
[1722081830170,5.3659,186.36,186.24,1.07363803]
[1722081830370,1.24426975,186.35,186.24,1.07363803]
[1722081830791,6.61046975,186.35,186.23,47.5022]
[1722081830987,5.3674,186.31,186.17,22.5722]
[1722081831288,5.3679,186.3,186.19,24.93]
[1722081831483,5.368,186.29,186.19,24.93]
[1722081831685,5.3683,186.28,186.19,24.93]
[1722081831892,5.369,186.26,186.17,22.5722]
[1722081832183,5.369,186.26,186.17,6.6163]
[1722081832576,6.61276975,186.27,186.17,6.6163]
[1722081832778,1.24426975,186.27,186.17,6.6163]
[1722081833282,1.24426975,186.27,186.18,1.07394387]
[1722081833486,1.24426975,186.27,186.18,1.07394319]
[1722081833690,16.6034,186.34,186.19,24.93]
[1722081833894,17.84766975,186.34,186.22,24.93]
[1722081834069,23.21416975,186.34,186.22,24.93]
[1722081834274,17.84766975,186.34,186.22,24.93]
[1722081834678,5.3668,186.33,186.22,24.93]
[1722081834892,17.84766975,186.34,186.22,24.93]
[1722081835078,17.84766975,186.34,186.22,40.8859]
[1722081835594,1.24426975,186.34,186.22,40.8859]
[1722081836471,5.3668,186.33,186.22,40.8859]
[1722081837091,6.61076975,186.34,186.22,40.8859]
[1722081837593,5.3672,186.32,186.22,40.8859]
[1722081837799,1.24426975,186.34,186.23,45.0]
[1722081837991,6.61096975,186.34,186.23,45.0]
[1722081838191,1.24426975,186.34,186.23,45.0]
[1722081838990,22.19522945,186.38,186.25,31.5463]
[1722081839189,0.78872,186.4,186.25,31.5463]
[1722081839190,0.78872,186.4,186.26,46.07337546]
[1722081839396,6.15352,186.4,186.27,1.07333244]
[1722081839605,0.78872,186.4,186.28,24.93]
[1722081839901,0.78872,186.4,186.32,6.6163]
[1722081840102,0.78872,186.4,186.33,45.0]
[1722081841583,0.78872,186.4,186.33,46.07299964]
[1722081841802,0.78872,186.4,186.34,44.93]
[1722081842008,0.78872,186.4,186.35,45.0]
[1722081842311,0.78872,186.4,186.32,6.6163]
[1722081842697,0.78872,186.4,186.33,1.07320651]
[1722081843105,0.78872,186.4,186.33,20.0]
[1722081843781,0.78872,186.4,186.34,46.07293813]
[1722081843980,0.78872,186.4,186.35,0.17]
[1722081844176,0.78872,186.4,186.35,21.41279828]
[1722081844393,0.78872,186.4,186.37,24.93]
[1722081844608,0.78872,186.4,186.38,45.0]
[1722081846515,0.78872,186.4,186.39,6.3461]
[1722081846804,0.78872,186.4,186.39,87.7507]
[1722081847104,0.78872,186.4,186.39,87.4107]
[1722081847411,0.78872,186.4,186.39,22.4107]
[1722081847713,0.78872,186.4,186.39,67.4107]
[1722081851394,0.78872,186.4,186.39,87.7507]
[1722081852398,1.0,186.5,186.44,24.93]
[1722081852599,1.0,186.5,186.45,45.0]
[1722081853700,1.0,186.5,186.41,24.93]
[1722081853900,1.0,186.5,186.42,65.34]
[1722081854102,1.0,186.5,186.42,65.17]
[1722081854422,1.0,186.5,186.43,1.24242191]
[1722081854589,1.0,186.5,186.43,0.17]
[1722081855283,1.0,186.5,186.42,65.17]
[1722081855692,1.0,186.5,186.39,22.4107]
[1722081856105,5.363,186.46,186.39,6.3461]
[1722081856304,5.3628,186.47,186.35,24.93]
[1722081856607,5.3633,186.46,186.35,24.93]
[1722081856809,15.0927,186.48,186.35,24.93]
[1722081856984,15.0927,186.48,186.34,22.4107]
[1722081857196,5.3634,186.45,186.34,22.4107]
[1722081857415,5.365,186.4,186.28,22.4107]
[1722081857706,40.0227,186.48,186.28,22.4107]
[1722081857707,5.3646,186.41,186.28,47.3407]
[1722081858086,5.3648,186.4,186.28,47.3407]
[1722081858282,5.365,186.39,186.28,47.3407]
[1722081858887,5.3648,186.4,186.28,47.3407]
[1722081859096,13.4085,186.45,186.28,22.4107]
[1722081859318,5.365,186.4,186.28,22.4107]
[1722081859528,5.3652,186.39,186.28,22.4107]
[1722081859905,5.3648,186.41,186.28,22.4107]
[1722081860107,5.3642,186.42,186.28,22.4107]
[1722081860508,5.3645,186.41,186.28,22.4107]
[1722081860712,5.3645,186.41,186.29,20.0]
[1722081860931,5.3645,186.41,186.3,45.0]
[1722081861225,13.4106,186.42,186.3,45.0]
[1722081861430,5.3654,186.38,186.3,45.0]
[1722081861604,5.3647,186.41,186.3,45.0]
[1722081861806,13.4083,186.46,186.29,46.07328916]
[1722081862005,5.3645,186.41,186.29,46.07328916]
[1722081862206,13.4083,186.46,186.29,45.0]
[1722081862839,5.3648,186.4,186.29,45.0]
[1722081863225,5.3645,186.41,186.29,45.0]
[1722081863416,5.3642,186.42,186.29,45.0]
[1722081863733,5.3642,186.42,186.3,1.07320091]
[1722081864031,5.3646,186.41,186.3,21.07320091]
[1722081864331,5.3646,186.41,186.31,45.0]
[1722081864533,13.4083,186.46,186.31,45.0]
[1722081864719,5.3643,186.42,186.31,45.0]
[1722081865033,5.3646,186.41,186.31,45.0]
[1722081865327,13.4083,186.46,186.31,45.0]
[1722081865541,5.61234725,186.47,186.32,1.07314314]
[1722081865705,10.70504725,186.48,186.33,1.07302996]
[1722081865901,5.3646,186.41,186.32,20.0]
[1722081866334,5.3646,186.41,186.29,21.07324626]
[1722081866512,58.4072,186.47,186.3,46.07324626]
[1722081866513,5.3648,186.4,186.3,46.07324626]
[1722081866708,5.3648,186.4,186.31,20.0]
[1722081866931,5.3662,186.36,186.28,22.4107]
[1722081867128,5.3656,186.38,186.28,22.4107]
[1722081867319,19.5667,186.41,186.28,22.4107]
[1722081868014,5.3663,186.35,186.28,6.3461]
[1722081868713,5.3666,186.34,186.28,6.3461]
[1722081868909,5.3668,186.33,186.24,6.6373]
[1722081869142,5.3665,186.34,186.24,6.6373]
[1722081869320,5.3669,186.33,186.24,6.6373]
[1722081869643,13.4134,186.38,186.24,6.6373]
[1722081870218,5.367,186.33,186.24,6.6373]
[1722081872731,13.4134,186.38,186.24,6.6373]
[1722081873035,16.14,186.38,186.24,6.6373]
[1722081873241,13.4156,186.35,186.2,6.6373]
[1722081873538,45.0,186.37,186.2,6.6373]
[1722081873718,13.4148,186.37,186.2,6.6373]
[1722081873922,5.3677,186.3,186.2,6.6373]
[1722081874328,5.3681,186.29,186.2,6.6373]
[1722081874526,36.14,186.36,186.2,6.6373]
[1722081874527,5.3682,186.28,186.2,6.6373]
[1722081875239,13.4177,186.33,186.2,6.6373]
[1722081876125,5.3677,186.3,186.2,6.6373]
[1722081876437,13.4177,186.33,186.2,6.6373]
[1722081876642,5.3674,186.31,186.2,6.6373]
[1722081876943,19.03348937,186.36,186.2,6.6373]
[1722081876944,5.61848937,186.36,186.2,7.71113456]
[1722081877145,5.3665,186.34,186.21,46.41383456]
[1722081877326,5.3668,186.33,186.22,20.0]
[1722081877515,35.46404336,186.4,186.23,45.0]
[1722081877716,5.3662,186.35,186.23,45.0]
[1722081878342,35.46404336,186.4,186.23,1.07360574]
[1722081878516,5.3673,186.32,186.22,20.0]
[1722081878717,5.3673,186.32,186.2,6.6373]
[1722081878718,13.4142,186.37,186.21,20.0]
[1722081878950,50.09164336,186.4,186.21,20.0]
[1722081878951,50.09164336,186.4,186.21,21.07374803]
[1722081879258,5.3662,186.35,186.22,24.94]
[1722081879418,46.99164336,186.4,186.25,6.6373]
[1722081879626,5.3657,186.37,186.26,20.0]
[1722081879850,5.3657,186.37,186.27,45.0]
[1722081880137,5.3659,186.36,186.27,45.0]
[1722081880329,5.3656,186.38,186.26,20.0]
[1722081880737,5.3659,186.36,186.26,20.0]
[1722081881255,5.3656,186.38,186.26,20.0]
[1722081881624,16.4339,186.4,186.26,20.0]
[1722081881625,5.3656,186.37,186.26,20.0]
[1722081882330,5.3653,186.39,186.27,45.0]
[1722081882549,5.3653,186.39,186.28,20.0]
[1722081882925,5.3654,186.38,186.28,20.0]
[1722081883326,5.3651,186.39,186.28,20.0]
[1722081884349,5.3647,186.41,186.29,45.0]
[1722081884546,5.3648,186.4,186.29,45.0]
[1722081884848,24.94,186.43,186.28,20.0]
[1722081884849,5.3655,186.38,186.28,20.0]
[1722081885053,5.3656,186.37,186.26,20.0]
[1722081885352,13.4114,186.41,186.27,45.0]
[1722081885722,5.3659,186.36,186.27,45.0]
[1722081886031,13.4114,186.41,186.27,45.0]
[1722081886543,13.4114,186.41,186.25,6.6373]
[1722081886751,13.4114,186.41,186.26,20.0]
[1722081887048,5.3645,186.41,186.29,16.1229]
[1722081887226,29.843,186.45,186.29,16.1229]
[1722081887642,35.45706915,186.45,186.29,16.1229]
[1722081888025,5.3648,186.4,186.3,45.0]
[1722081888345,5.3653,186.39,186.3,45.0]
[1722081888837,5.3651,186.39,186.3,45.0]
[1722081889248,5.3648,186.4,186.3,45.0]
[1722081889425,5.3645,186.41,186.3,45.0]
[1722081889627,5.61406915,186.45,186.31,6.4941]